bitfinex/quotes_SOLUSD_20250402
["timestamp","ask_amount","ask_price","bid_price","bid_amount"]
[1743616702837,11.85899753,129.67,129.66,0.063]
[1743616704453,19.57079753,129.67,129.66,0.063]
[1743616707150,12.19289144,129.67,129.66,0.063]
[1743616708245,7.7118,129.67,129.66,0.063]
[1743616709058,19.57079753,129.67,129.66,0.063]
[1743616711066,38.36260796,129.67,129.66,0.063]
[1743616711245,38.6469311,129.67,129.66,0.063]
[1743616713078,18.79181043,129.66,129.61,0.063]
[1743616713376,11.85899753,129.65,129.61,0.063]
[1743616714659,30.65080796,129.66,129.61,0.063]
[1743616715670,7.713,129.65,129.61,0.063]
[1743616717754,19.57199753,129.65,129.61,0.063]
[1743616719554,7.713,129.65,129.61,0.063]
[1743616720456,19.57199753,129.65,129.61,0.063]
[1743616720970,7.713,129.65,129.61,0.063]
[1743616721157,19.57199753,129.65,129.61,0.063]
[1743616721666,7.713,129.65,129.61,0.063]
[1743616728178,19.57199753,129.65,129.61,0.063]
[1743616730165,11.85899753,129.64,129.61,0.063]
[1743616730372,11.85899753,129.63,129.61,0.063]
[1743616731457,11.85899753,129.64,129.61,0.063]
[1743616732266,7.7142,129.63,129.61,0.063]
[1743616734154,1.5425,129.65,129.61,0.063]
[1743616734362,11.09875738,129.67,129.61,0.063]
[1743616734363,18.81085738,129.67,129.61,0.063]
[1743616734659,11.85899753,129.63,129.61,0.063]
[1743616735474,13.51869753,129.64,129.61,0.063]
[1743616736078,1.6597,129.64,129.61,0.063]
[1743616736285,7.713,129.65,129.61,0.063]
[1743616737856,19.57199753,129.65,129.61,0.063]
[1743616739188,11.85899753,129.63,129.61,0.063]
[1743616739974,11.85899753,129.62,129.61,0.063]
[1743616740275,30.65080796,129.62,129.61,0.063]
[1743616741060,38.22344639,129.62,129.61,0.063]
[1743616741385,38.36560796,129.62,129.61,0.063]
[1743616743395,7.7148,129.62,129.61,0.063]
[1743616744471,7.7145,129.63,129.61,0.063]
[1743616745388,19.57259753,129.64,129.61,0.063]
[1743616745964,7.7136,129.64,129.61,0.063]
[1743616746170,7.7133,129.65,129.61,0.063]
[1743616747597,7.7424,129.66,129.61,0.063]
[1743616748105,7.7424,129.66,129.61,7.58732314]
[1743616748306,0.03,129.66,129.61,13.5606]
[1743616749485,0.03,129.66,129.61,21.2759]
[1743616751202,7.7424,129.66,129.61,21.2759]
[1743616751387,11.85899753,129.64,129.61,7.303]
[1743616751587,11.85899753,129.64,129.61,0.063]
[1743616752104,11.85899753,129.65,129.61,0.063]
[1743616753806,12.20741983,129.64,129.61,0.063]
[1743616754800,4.49381983,129.64,129.61,0.063]
[1743616755381,7.7425,129.66,129.61,0.063]
[1743616757307,0.03,129.66,129.61,0.063]
[1743616759010,7.7424,129.66,129.61,0.063]
[1743616759992,0.03,129.66,129.61,0.063]
[1743616760196,0.03,129.66,129.62,7.24]
[1743616762501,0.03,129.66,129.62,14.9548]
[1743616763312,0.03,129.66,129.62,7.24]
[1743616771631,7.7424,129.66,129.62,7.24]
[1743616772200,0.03,129.66,129.62,7.24]
[1743616772401,0.03,129.66,129.62,14.9547]
[1743616773205,0.03,129.66,129.63,0.28432314]
[1743616773830,0.03,129.66,129.64,7.7136]
[1743616774823,0.03,129.66,129.65,18.79181043]
[1743616775433,0.03,129.67,129.66,26.53201043]
[1743616775729,0.03,129.67,129.66,34.24441043]
[1743616777238,0.03,129.67,129.66,26.0]
[1743616777429,0.03,129.67,129.66,33.24]
[1743616779515,0.03,129.67,129.66,41.23672314]
[1743616779918,0.03,129.67,129.66,60.02853357]
[1743616782719,0.03,129.67,129.66,40.9524]
[1743616783938,0.03,129.67,129.66,7.22]
[1743616784134,0.03,129.67,129.65,288.6]
[1743616784437,0.03,129.67,129.66,7.22]
[1743616787235,0.03,129.67,129.64,7.99792314]
[1743616787428,0.03,129.67,129.66,7.22]
[1743616787841,11.88899753,129.67,129.62,288.643]
[1743616788043,13.36199753,129.66,129.62,288.643]
[1743616788221,11.85899753,129.65,129.62,288.643]
[1743616788620,13.36199753,129.66,129.62,288.643]
[1743616788836,13.36199753,129.66,129.62,0.063]
[1743616788837,11.85899753,129.65,129.62,0.063]
[1743616789041,11.85899753,129.64,129.62,0.063]
[1743616789233,7.7142,129.63,129.62,0.063]
[1743616793554,38.85469753,129.65,129.62,0.063]
[1743616795753,19.57199753,129.65,129.62,0.063]
[1743616795946,7.713,129.65,129.62,0.063]
[1743616798633,19.57199753,129.65,129.62,0.063]
[1743616799853,38.85459753,129.65,129.62,0.063]
[1743616800433,11.85899753,129.63,129.62,0.063]
[1743616801243,38.9752311,129.63,129.62,0.0001]
[1743616801836,39.99450796,129.63,129.62,0.0001]
[1743616802449,21.20269753,129.63,129.62,0.0001]
[1743616802968,9.3437,129.63,129.62,0.0001]
[1743616803252,7.7139,129.64,129.62,0.0001]
[1743616803458,7.7132,129.65,129.62,0.0001]
[1743616805351,11.85899753,129.64,129.62,0.0001]
[1743616806048,26.9958,129.65,129.62,0.0001]
[1743616806239,38.85479753,129.65,129.62,0.0001]
[1743616806657,19.57169753,129.66,129.62,0.0001]
[1743616806840,1.6921,129.67,129.62,0.0001]
[1743616806841,0.03,129.67,129.63,26.0]
[1743616807041,0.03,129.67,129.64,0.42648471]
[1743616807248,0.03,129.67,129.65,7.713]
[1743616808858,0.03,129.67,129.66,33.39923357]
[1743616809059,0.03,129.73,129.69,26.0]
[1743616809238,0.03,129.73,129.7,7.22]
[1743616811342,0.03,129.73,129.7,14.9298]
[1743616813556,0.03,129.73,129.71,0.42648471]
[1743616814362,0.03,129.73,129.7,14.9298]
[1743616814554,0.03,129.73,129.71,8.13568471]
[1743616816574,0.03,129.73,129.72,6.86608471]
[1743616816772,0.03,129.73,129.72,33.22463357]
[1743616820363,0.03,129.73,129.72,34.89113357]
[1743616821758,0.03,129.73,129.72,25.23141043]
[1743616821963,0.03,129.73,129.72,7.36216157]
[1743616822367,0.03,129.73,129.72,7.64648471]
[1743616822895,0.03,129.73,129.72,15.35538471]
[1743616823274,0.03,129.73,129.72,15.21322314]
[1743616823580,0.03,129.73,129.72,15.35538471]
[1743616826989,0.03,129.74,129.73,0.42648471]
[1743616827189,0.03,129.78,129.77,26.42648471]
[1743616827393,0.03,129.78,129.77,41.35238471]
[1743616829391,0.03,129.78,129.76,26.0]
[1743616829594,0.03,129.78,129.76,33.22]
[1743616832074,7.02292,129.8,129.76,33.22]
[1743616832685,19.2599,129.81,129.76,33.22]
[1743616833382,37.79325629,129.81,129.76,33.22]
[1743616833588,19.2599,129.81,129.76,33.22]
[1743616834689,26.9934,129.81,129.76,33.22]
[1743616834886,45.52675629,129.81,129.75,0.063]
[1743616835089,1.5022,129.78,129.75,0.063]
[1743616836708,7.7059,129.77,129.75,0.063]
[1743616839224,26.23925629,129.77,129.75,0.063]
[1743616840013,18.53335629,129.76,129.75,0.063]
[1743616841195,26.23985629,129.76,129.75,0.063]
[1743616841796,26.23985629,129.76,129.75,0.0001]
[1743616842907,7.7426,129.75,129.7,288.48]
[1743616843203,18.53335629,129.71,129.64,7.2]
[1743616843392,18.53335629,129.69,129.63,288.46]
[1743616843704,18.53335629,129.68,129.63,288.46]
[1743616844611,18.53335629,129.69,129.63,288.46]
[1743616845211,7.7112,129.68,129.63,288.46]
[1743616846190,19.2719,129.73,129.66,26.0]
[1743616846487,37.80525629,129.73,129.66,26.0]
[1743616846886,19.2719,129.73,129.66,26.0]
[1743616847408,26.9802,129.73,129.66,26.0]
[1743616847789,26.9802,129.73,129.67,7.2]
[1743616848387,26.9802,129.73,129.67,14.9117]
[1743616848806,7.7083,129.73,129.67,14.9117]
[1743616850392,9.2518,129.74,129.7,26.0]
[1743616850597,1.544,129.74,129.7,26.0]
[1743616851512,9.2517,129.74,129.7,26.0]
[1743616852216,7.7065,129.76,129.7,26.0]
[1743616852403,7.7065,129.76,129.71,7.7095]
[1743616853090,9.2968,129.77,129.71,7.7095]
[1743616853289,1.5907,129.77,129.72,7.62648471]
[1743616853492,7.7056,129.78,129.72,7.2]
[1743616853708,26.23895629,129.78,129.72,7.2]
[1743616854018,45.50225629,129.78,129.72,7.2]
[1743616854211,18.53335629,129.77,129.72,7.2]
[1743616854694,45.50615629,129.76,129.72,7.2]
[1743616855022,18.53335629,129.75,129.68,13.6586]
[1743616855719,18.53335629,129.75,129.68,21.3697]
[1743616856012,26.24105629,129.74,129.68,21.3698]
[1743616856199,7.7077,129.74,129.68,21.3698]
[1743616857001,18.53335629,129.75,129.69,19.07613357]
[1743616857002,7.7073,129.75,129.69,19.07613357]
[1743616857193,37.79705629,129.78,129.69,19.07613357]
[1743616857592,19.2637,129.78,129.69,19.07613357]
[1743616857799,26.23805629,129.79,129.72,33.7083]
[1743616858000,7.7047,129.79,129.72,33.7083]
[1743616858316,18.53335629,129.73,129.66,0.063]
[1743616858907,18.53335629,129.73,129.66,0.20516157]
[1743616859617,18.53335629,129.73,129.66,0.48948471]
[1743616860127,7.7089,129.72,129.66,0.34732314]
[1743616860330,7.7089,129.72,129.66,0.48948471]
[1743616861834,7.7084,129.73,129.68,0.42648471]
[1743616862121,0.03,129.75,129.68,2.03118471]
[1743616862328,0.03,129.75,129.71,6.81588471]
[1743616862522,0.03,129.75,129.72,7.2]
[1743616864805,0.03,129.75,129.71,26.0]
[1743616865004,18.56335629,129.75,129.69,7.2]
[1743616865523,7.7077,129.74,129.69,7.2]
[1743616865836,26.24105629,129.74,129.69,7.2]
[1743616866326,26.24105629,129.74,129.68,26.97913357]
[1743616866536,45.51035629,129.74,129.69,0.42648471]
[1743616866702,18.53335629,129.73,129.68,13.4983]
[1743616867426,7.7089,129.72,129.68,6.2983]
[1743616868329,18.53335629,129.71,129.66,288.623]
[1743616868528,18.53335629,129.68,129.66,0.063]
[1743616869020,18.53335629,129.69,129.66,0.063]
[1743616869523,7.7112,129.68,129.66,0.063]
[1743616870924,7.7103,129.7,129.66,0.063]
[1743616872328,7.7103,129.7,129.66,19.13913357]
[1743616873434,7.7095,129.71,129.66,19.13913357]
[1743616874308,37.39417623,129.71,129.66,19.13913357]
[1743616874509,56.66787623,129.71,129.66,0.063]
[1743616874716,29.68467623,129.69,129.66,0.063]
[1743616874918,29.68467623,129.68,129.66,0.063]
[1743616875437,29.68467623,129.69,129.66,0.063]
[1743616876035,7.7112,129.68,129.66,0.063]
[1743616879337,31.35117623,129.72,129.66,0.063]
[1743616879338,7.7101,129.7,129.66,0.063]
[1743616879640,7.7096,129.71,129.67,26.0]
[1743616880631,7.7096,129.71,129.66,19.13913357]
[1743616881433,7.7096,129.71,129.66,26.063]
[1743616881612,29.68467623,129.7,129.66,0.063]
[1743616881817,29.68467623,129.68,129.66,0.063]
[1743616882229,29.68467623,129.69,129.66,0.063]
[1743616883047,7.7112,129.68,129.66,0.063]
[1743616883228,7.7095,129.71,129.66,0.063]
[1743616884024,7.7095,129.71,129.66,19.13913357]
[1743616884342,37.39417623,129.71,129.66,19.13913357]
[1743616884717,29.68467623,129.7,129.66,0.063]
[1743616885158,7.7106,129.69,129.66,0.063]
[1743616887452,31.35117623,129.72,129.66,19.13913357]
[1743616888447,7.7096,129.71,129.66,26.85123357]
[1743616888745,7.7096,129.71,129.66,19.13913357]
[1743616888941,7.7096,129.71,129.66,0.063]
[1743616889116,37.39427623,129.71,129.66,0.063]
[1743616889744,7.7096,129.71,129.66,0.063]
[1743616889949,7.7077,129.74,129.66,26.85143357]
[1743616890152,7.7077,129.74,129.69,26.0]
[1743616890339,7.7077,129.74,129.69,33.2]
[1743616890545,7.7374,129.75,129.7,26.78603357]
[1743616891126,7.7374,129.75,129.7,18.64964886]
[1743616891322,7.7374,129.75,129.7,26.35964886]
[1743616892138,7.7374,129.75,129.7,18.64964886]
[1743616892645,7.7374,129.75,129.7,26.35964886]
[1743616892867,0.03,129.75,129.71,0.42648471]
[1743616894043,0.03,129.75,129.74,19.07613357]
[1743616894239,0.03,129.81,129.77,26.0]
[1743616894643,0.03,129.81,129.77,33.7054]
[1743616896437,0.03,129.81,129.77,26.0]
[1743616896646,0.03,129.81,129.74,26.27613357]
[1743616896647,18.53188124,129.8,129.74,26.27613357]
[1743616897858,7.7047,129.79,129.74,26.27613357]
[1743616898350,7.7047,129.79,129.74,33.98373357]
[1743616898946,18.56188124,129.81,129.74,33.98373357]
[1743616899765,0.03,129.81,129.77,33.7054]
[1743616899972,0.03,129.81,129.78,19.07613357]
[1743616900937,0.03,129.81,129.78,18.64964886]
[1743616902451,0.03,129.81,129.78,26.35494886]
[1743616904252,0.03,129.81,129.78,18.64964886]
[1743616906166,0.03,129.81,129.74,26.4693]
[1743616906167,18.53188124,129.8,129.73,290.1883]
[1743616906335,18.53188124,129.8,129.74,0.14216157]
[1743616906663,18.53188124,129.8,129.74,19.07613357]
[1743616907241,0.03,129.81,129.76,19.07613357]
[1743616908376,0.03,129.81,129.77,7.7059]
[1743616908876,0.03,129.81,129.76,8.13278471]
[1743616909344,18.56188124,129.81,129.77,26.0]
[1743616910339,0.03,129.81,129.77,33.7058]
[1743616910656,0.03,129.81,129.77,26.0]
[1743616910847,18.53188124,129.8,129.75,7.18]
[1743616911049,18.53188124,129.8,129.74,26.641372]
[1743616911353,18.53188124,129.8,129.74,33.821372]
[1743616911545,0.03,129.81,129.77,26.0]
[1743616911952,0.03,129.81,129.78,19.07613357]
[1743616912345,0.03,129.81,129.78,26.78103357]
[1743616913049,0.03,129.81,129.78,26.35454886]
[1743616913844,0.03,129.81,129.8,19.07613357]
[1743616915749,0.03,129.81,129.8,26.78023357]
[1743616917961,0.03,129.81,129.8,26.98023357]
[1743616920244,0.03,129.85,129.84,26.14216157]
[1743616920563,0.03,129.85,129.84,52.45613357]
[1743616921966,0.03,129.85,129.84,60.15783357]
[1743616922354,0.03,129.85,129.84,66.26233357]
[1743616924456,0.03,129.85,129.84,60.15783357]
[1743616925070,0.03,129.85,129.84,60.015672]
[1743616925375,0.03,129.85,129.84,52.45613357]
[1743616925575,0.03,129.85,129.84,33.38]
[1743616925774,0.03,129.85,129.84,60.15783357]
[1743616928077,0.03,129.85,129.84,7.38]
[1743616928279,0.03,129.85,129.84,33.38]
[1743616928659,0.03,129.85,129.84,41.0817]
[1743616928857,0.03,129.85,129.84,60.15783357]
[1743616931776,0.03,129.85,129.84,26.2]
[1743616933378,0.03,129.85,129.84,33.9017]
[1743616933579,0.03,129.85,129.84,52.97783357]
[1743616934456,0.03,129.85,129.84,0.2]
[1743616938162,0.03,129.85,129.84,26.97783357]
[1743616938357,0.03,129.85,129.84,19.27613357]
[1743616939568,0.03,129.85,129.84,0.2]
[1743616944273,0.03,129.85,129.82,3.58]
[1743616946388,18.53188124,129.83,129.82,3.58]
[1743616947286,8.0454,129.82,129.75,0.063]
[1743616947594,18.53188124,129.78,129.76,3.58]
[1743616948578,7.7047,129.79,129.76,3.58]
[1743616948775,26.23658124,129.79,129.76,3.58]
[1743616948980,18.53188124,129.77,129.76,3.58]
[1743616949207,20.17978124,129.77,129.75,0.063]
[1743616949401,18.53188124,129.76,129.75,0.063]
[1743616950493,32.86108124,129.76,129.75,0.063]
[1743616952786,51.93721481,129.76,129.75,0.063]
[1743616953085,51.93721481,129.76,129.75,0.0001]
[1743616953281,62.82152706,129.76,129.75,0.0001]
[1743616956802,62.67936549,129.76,129.75,0.0001]
[1743616958608,62.82152706,129.76,129.75,0.0001]
[1743616958915,43.74539349,129.76,129.75,0.0001]
[1743616964326,62.82152706,129.76,129.75,0.0001]
[1743616964917,43.74539349,129.76,129.75,0.0001]
[1743616965221,14.3592,129.76,129.75,0.0001]
[1743616965399,32.89108124,129.76,129.75,0.0001]
[1743616966502,26.26838124,129.76,129.75,0.0001]
[1743616970012,7.7365,129.76,129.75,0.0001]
[1743616970221,26.26838124,129.76,129.75,0.0001]
[1743616972930,0.03,129.76,129.75,0.0001]
[1743616977445,0.03,129.76,129.75,26.0001]
[1743616978612,0.03,129.76,129.75,33.7072]
[1743616979624,0.03,129.76,129.75,52.78333357]
[1743616980344,0.03,129.76,129.75,59.26613357]
[1743616980744,18.53188124,129.81,129.75,59.26613357]
[1743616981043,18.53188124,129.78,129.75,0.0001]
[1743616981222,18.53188124,129.77,129.75,0.0001]
[1743616981747,26.23818124,129.77,129.75,0.0001]
[1743616982647,18.53188124,129.76,129.75,0.0001]
[1743616983725,26.23838124,129.76,129.75,0.0001]
[1743616988466,7.7065,129.76,129.75,0.0001]
[1743616989576,7.7059,129.77,129.75,0.0001]
[1743616989775,26.23778124,129.77,129.75,0.0001]
[1743616990153,7.7059,129.77,129.75,0.0001]
[1743616991477,17.95296781,129.82,129.75,6.1138]
[1743616991642,7.7331,129.82,129.76,19.07613357]
[1743616992573,0.03,129.82,129.76,19.07613357]
[1743616993291,0.03,129.82,129.77,7.7059]
[1743616993460,0.03,129.82,129.78,19.07613357]
[1743616993770,0.03,129.82,129.79,7.18]
[1743616994495,0.03,129.82,129.8,0.28432314]
[1743616994707,0.03,129.82,129.81,26.0]
[1743616995266,0.03,129.82,129.81,52.77963357]
[1743616995472,0.03,129.82,129.81,59.27443357]
[1743616995858,0.03,129.82,129.81,67.39573664]
[1743616996058,0.03,129.85,129.84,45.07613357]
[1743616996277,0.03,129.89,129.88,26.14216157]
[1743616996483,0.03,129.95,129.89,19.07613357]
[1743616996691,18.53188124,129.94,129.9,7.18]
[1743616996865,18.53188124,129.93,129.9,7.18]
[1743616997376,7.697,129.92,129.9,7.18]
[1743616997584,26.22888124,129.92,129.9,7.18]
[1743616997793,26.22888124,129.92,129.86,295.6]
[1743616997998,18.53188124,129.9,129.86,295.6]
[1743616998202,18.53188124,129.91,129.86,295.6]
[1743616998502,18.53188124,129.91,129.86,288.42]
[1743616998802,18.53188124,129.89,129.84,7.18]
[1743616998985,1.5202,129.91,129.84,7.18]
[1743616999326,7.7,129.87,129.84,7.18]
[1743616999593,26.23188124,129.87,129.81,44.63617211]
[1743616999791,19.2474,129.89,129.82,0.36]
[1743616999969,18.53188124,129.87,129.82,0.36]
[1743617000174,18.53188124,129.85,129.82,0.36]
[1743617000772,18.53188124,129.86,129.82,0.36]
[1743617001003,18.53188124,129.86,129.81,13.793]
[1743617001410,18.53188124,129.85,129.79,308.07596168]
[1743617001580,7.7017,129.84,129.79,296.0246]
[1743617002084,7.7014,129.85,129.79,296.0246]
[1743617002792,7.7007,129.86,129.8,19.07613357]
[1743617003009,18.53188124,129.89,129.8,19.07613357]
[1743617003204,18.53188124,129.88,129.8,19.07613357]
[1743617003773,7.7,129.87,129.8,26.77993357]
[1743617003999,26.23188124,129.87,129.8,26.77993357]
[1743617004609,45.48188124,129.87,129.8,19.07613357]
[1743617004821,26.95,129.87,129.79,288.32]
[1743617005103,18.53188124,129.84,129.79,288.32]
[1743617005515,26.95,129.87,129.79,288.32]
[1743617005516,18.53188124,129.83,129.79,288.32]
[1743617005806,29.62015081,129.83,129.79,288.32]
[1743617006012,29.62015081,129.81,129.78,0.063]
[1743617006174,29.62015081,129.81,129.78,0.423]
[1743617007111,29.62015081,129.82,129.78,0.423]
[1743617007307,29.62015081,129.83,129.78,0.063]
[1743617007809,7.7029,129.82,129.78,0.063]
[1743617008005,37.32275081,129.83,129.78,0.063]
[1743617008220,13.8228,129.86,129.78,26.063]
[1743617008523,37.32155081,129.85,129.78,26.063]
[1743617009126,37.32155081,129.85,129.79,7.18]
[1743617009628,7.7023,129.83,129.79,7.18]
[1743617009928,7.7023,129.83,129.78,33.7682]
[1743617009929,29.62015081,129.82,129.78,26.063]
[1743617011217,29.62015081,129.82,129.78,0.063]
[1743617011831,37.32345081,129.82,129.78,0.063]
[1743617012031,7.7033,129.82,129.78,0.063]
[1743617012329,29.62015081,129.84,129.78,0.063]
[1743617012626,37.32215081,129.84,129.78,0.063]
[1743617013625,29.62015081,129.82,129.78,0.063]
[1743617014042,29.62015081,129.83,129.78,0.063]
[1743617015450,7.7029,129.82,129.78,0.063]
[1743617015652,37.32305081,129.82,129.78,0.063]
[1743617015827,29.62015081,129.81,129.78,0.063]
[1743617017523,7.7041,129.8,129.78,0.063]
[1743617020832,29.62015081,129.79,129.78,0.063]
[1743617021948,37.32485081,129.79,129.78,0.063]
[1743617025665,56.40098438,129.79,129.78,0.063]
[1743617025826,56.40098438,129.79,129.75,0.0001]
[1743617025827,29.62015081,129.76,129.75,0.0001]
[1743617027827,26.24423347,129.76,129.75,0.0001]
[1743617034371,7.7065,129.76,129.75,0.0001]
[1743617034580,26.24423347,129.76,129.75,0.0001]
[1743617037281,7.7053,129.78,129.75,0.0001]
[1743617037663,26.24303347,129.78,129.75,0.0001]
[1743617038279,18.53773347,129.77,129.75,0.0001]
[1743617038454,26.24413347,129.77,129.75,0.0001]
[1743617040476,18.56773347,129.78,129.75,0.0001]
[1743617041588,0.03,129.78,129.76,6.0319]
[1743617042169,0.03,129.78,129.77,20.74073357]
[1743617043512,0.03,129.78,129.77,28.44663357]
[1743617045027,20.06843347,129.87,129.81,26.14216157]
[1743617045317,0.03,129.87,129.82,6.2184]
[1743617046122,7.7303,129.87,129.82,6.2184]
[1743617047718,26.26803347,129.87,129.82,6.2184]
[1743617047903,18.53773347,129.86,129.81,33.18]
[1743617048896,7.7011,129.85,129.81,33.18]
[1743617050390,7.7011,129.85,129.8,7.16]
[1743617051314,26.23883347,129.85,129.8,7.16]
[1743617051524,45.49173347,129.85,129.8,7.16]
[1743617051705,47.00333347,129.85,129.8,7.16]
[1743617052424,28.4656,129.85,129.8,7.16]
[1743617052607,26.954,129.85,129.8,7.16]
[1743617052801,7.7008,129.86,129.81,26.0]
[1743617053322,18.53773347,129.85,129.8,7.16]
[1743617053616,18.53773347,129.84,129.79,26.0]
[1743617053991,18.53773347,129.83,129.79,26.0]
[1743617054796,7.7029,129.82,129.79,26.0]
[1743617055011,26.24063347,129.82,129.77,1.6646]
[1743617055216,18.53773347,129.81,129.76,6.0941]
[1743617055393,18.53773347,129.8,129.76,6.0941]
[1743617056321,18.53773347,129.81,129.76,6.0941]
[1743617057124,7.7041,129.8,129.76,6.0941]
[1743617058239,7.7036,129.81,129.76,6.0941]
[1743617058806,18.53773347,129.8,129.75,0.0001]
[1743617059227,7.7047,129.79,129.75,0.0001]
[1743617059825,26.24243347,129.79,129.75,0.0001]
[1743617060028,18.53773347,129.78,129.75,0.0001]
[1743617060729,45.50423347,129.79,129.75,0.0001]
[1743617061105,7.7047,129.79,129.75,0.0001]
[1743617062751,7.7342,129.8,129.75,0.0001]
[1743617062914,18.53773347,129.79,129.75,0.0001]
[1743617063324,7.7053,129.78,129.75,0.0001]
[1743617063723,26.24303347,129.78,129.75,0.0001]
[1743617064311,7.7053,129.78,129.75,0.0001]
[1743617064520,26.24303347,129.78,129.75,0.0001]
[1743617065335,7.7053,129.78,129.75,0.0001]
[1743617066622,7.7344,129.8,129.75,0.0001]
[1743617066824,0.03,129.8,129.77,26.0]
[1743617067561,0.03,129.8,129.77,33.7056]
[1743617068055,0.03,129.8,129.77,26.0]
[1743617068266,0.03,129.8,129.77,33.7058]
[1743617070265,0.03,129.8,129.77,26.0]
[1743617073279,0.03,129.8,129.79,26.0]
[1743617073449,0.03,129.8,129.79,19.07613357]
[1743617073651,0.03,129.8,129.78,6.3744]
[1743617074170,0.03,129.8,129.75,1.6352]
[1743617074482,18.53773347,129.79,129.75,0.0001]
[1743617074639,7.7053,129.78,129.75,0.0001]
[1743617076775,7.7344,129.8,129.75,19.07623357]
[1743617076946,0.03,129.8,129.75,19.07623357]
[1743617077349,7.7343,129.8,129.75,19.07623357]
[1743617078971,26.27203347,129.8,129.75,7.1601]
[1743617079140,45.53243347,129.8,129.75,7.1601]
[1743617079343,18.53773347,129.79,129.75,7.1601]
[1743617079544,18.53773347,129.79,129.75,0.0001]
[1743617080891,7.7053,129.78,129.75,0.0001]
[1743617085278,9.2793,129.78,129.75,0.0001]
[1743617085886,18.53773347,129.77,129.75,0.0001]
[1743617086167,18.53773347,129.76,129.75,0.0001]
[1743617087088,26.24423347,129.76,129.75,0.0001]
[1743617092503,7.7065,129.76,129.75,0.0001]
[1743617093387,26.24363347,129.77,129.75,0.0001]
[1743617093780,18.53773347,129.76,129.75,0.0001]
[1743617095907,26.24423347,129.76,129.75,0.0001]
[1743617097691,19.57004347,129.76,129.75,0.0001]
[1743617099554,38.64617704,129.76,129.75,0.0001]
[1743617100391,19.07613357,129.73,129.71,0.0001]
[1743617100696,30.93967704,129.72,129.71,0.0001]
[1743617101813,63.89428455,129.72,129.71,0.0001]
[1743617103599,7.7085,129.73,129.71,0.0001]
[1743617104225,27.92372549,129.74,129.71,0.0001]
[1743617104422,18.55462549,129.73,129.71,0.0001]
[1743617104607,18.55462549,129.72,129.71,0.0001]
[1743617104935,37.53573569,129.72,129.71,0.0001]
[1743617105097,95.17807458,129.72,129.71,0.0001]
[1743617105614,102.88697458,129.72,129.71,0.0001]
[1743617105828,26.0,129.69,129.66,0.063]
[1743617106007,37.63075906,129.67,129.66,0.063]
[1743617106419,57.70318455,129.67,129.66,0.0001]
[1743617106607,42.70613357,129.66,129.64,0.0001]
[1743617106944,60.76075906,129.65,129.64,0.0001]
[1743617107239,60.76075906,129.65,129.62,0.0001]
[1743617107240,42.20613357,129.64,129.62,0.0001]
[1743617107439,60.76075906,129.63,129.62,0.0001]
[1743617107603,60.76075906,129.63,129.61,0.0001]
[1743617107604,49.92093357,129.62,129.61,0.0001]
[1743617107803,87.03018455,129.62,129.61,0.0001]
[1743617108037,68.47555906,129.62,129.61,0.0001]
[1743617108250,54.94214909,129.62,129.61,0.0001]
[1743617110914,58.86336214,129.62,129.61,0.0001]
[1743617113944,65.78197458,129.61,129.6,0.0001]
[1743617115441,73.49737458,129.61,129.6,0.0001]
[1743617117526,73.49737458,129.61,129.57,0.063]
[1743617117527,26.0,129.59,129.57,0.063]